Cogmind - Beta 14 @@@ ROGUE MODE // 2024.08.26 @ 08:31:49 Player: AppleSource Result: Self-destructed Performance ------------- Evolutions (2) 1000 Regions Visited (5) 1000 Robots Destroyed (28) 140 Value Destroyed (654) 654 Prototype IDs (24) 480 Alien Tech Used (0) 0 Bonus (300) 300 TOTAL SCORE: 3574 Bonus ------- Aligned with FarCom 300 Cogmind --------- Core Integrity 263/550 Matter 297/300 Energy 100/100 System Corruption 0% Temperature Cool (9) Movement Core (50) Location -8/Materials Parts ------- > --- POWER (1) -------- (None) > --- PROPULSION (3) --- (None) > --- UTILITY (5) ------ Experimental Sensor Array > --- WEAPON (2) ------- (None) > --- INVENTORY (5) ---- Small Storage Unit Proton Bomb Trap Proton Bomb Trap Proton Bomb Trap Peak State ------------ > --- POWER ------------ Ion Engine > --- PROPULSION ------- Wheel > --- UTILITY ---------- Huge Storage Unit Experimental Sensor Array > --- WEAPON ----------- Firepult > --- INVENTORY -------- Light Ion Engine Small Storage Unit Proton Bomb Trap Proton Bomb Trap Proton Bomb Trap [Rating: 32] Favorites ----------- Power Ion Engine Engine Ion Engine Propulsion Wheel Treads Light Treads Wheel Wheel Utility Huge Storage Unit Device Experimental Sensor Array Storage Huge Storage Unit Processor Signal Interpreter Weapon Particle Gun Energy Gun Particle Gun Energy Cannon Firepult Ballistic Gun Light Assault Rifle Build | -11 -10 -10 -10 -9 -8 ------- Run | Yrd Mat Min Exi Min Mat Slots Evolved 4 | . . . . . 4 Power . | . . . . . . Propulsion 1 | . . . . . 1 Utility 3 | . . . . . 3 Weapon . | . . . . . . Parts Attached 23 | 6 13 1 . . 3 Power 4 | 1 2 . . . 1 Engine 4 | 1 2 . . . 1 Core . | . . . . . . Reactor . | . . . . . . Propulsion 7 | 2 5 . . . . Treads 5 | 2 3 . . . . Leg . | . . . . . . Wheel 2 | . 2 . . . . Hover . | . . . . . . Flight . | . . . . . . Utility 4 | 1 2 1 . . . Device 1 | . . 1 . . . Storage 2 | 1 1 . . . . Processor 1 | . 1 . . . . Hackware . | . . . . . . Protection . | . . . . . . Artifact . | . . . . . . Weapon 8 | 2 4 . . . 2 Energy Gun 1 | . 1 . . . . Energy Cannon 2 | . . . . . 2 Ballistic Gun 5 | 2 3 . . . . Ballistic Cannon . | . . . . . . Launcher . | . . . . . . Special Weapon . | . . . . . . Impact Weapon . | . . . . . . Slashing Weapon . | . . . . . . Piercing Weapon . | . . . . . . Special Melee Weapon . | . . . . . . Unidentified Prototypes 1 | . . 1 . . . Parts Lost 12 | . 5 . . . 7 Power 3 | . 1 . . . 2 Propulsion 4 | . 2 . . . 2 Utility 1 | . . . . . 1 Weapon 4 | . 2 . . . 2 Highest Loss Streak 4 | . 4 . . . 4 To Critical Strikes . | . . . . . . Average Slot Usage (%) 73 | . 71 85 85 85 39 Engine 13 | . 13 14 14 14 8 Treads 5 | . 7 . . . . Wheel 10 | . 2 28 28 28 9 Device 4 | . . 10 14 14 9 Storage 13 | . 14 14 14 14 9 Processor 8 | . 13 3 . . . Energy Gun 10 | . 10 14 14 14 1 Ballistic Gun 6 | . 9 . . . . Peak Build Rating 32 | 6 7 15 17 17 32 Average Rating 9 | 4 5 13 15 17 19 On Entrance 10 | . 6 7 15 17 17 Naked Turns . | . . . . . . Heaviest Build 108 | 10 89 89 89 89 108 Greatest Support 40 | 40 40 20 20 20 20 Greatest Overweight (x) 29 | 3 29 4 4 4 10 Average Overweight (x) 4 | . 5 4 4 4 7 Largest Inventory Capacity 25 | 8 25 25 25 25 25 Average Capacity 21 | 7 19 25 25 25 24 Most Carried 7 | 1 2 2 4 7 7 Average Carried 2 | . 1 2 2 5 6 Final Capacity 25 | 8 25 25 25 25 5 Final Carried 7 | 1 2 2 4 7 4 Class Distribution -------------------- 64% | Mutant 33% | Scavenger-Mutant Dominant Class ---------------- Mutant | -10/Materials Scavenger-Mutant | -10/Mines Scavenger-Mutant | -10/Exiles Scavenger-Mutant | -9/Mines Mutant | -8/Materials Resources | -11 -10 -10 -10 -9 -8 ----------- Run | Yrd Mat Min Exi Min Mat Matter Collected 545 | 218 262 . . . 65 Remotely . | . . . . . . Salvage Created 976 | . 626 . . . 350 Parts 53 | . 48 . . . 5 Haulers Intercepted 2 | . 1 . . . 1 Recyclers Shooed 2 | . 1 . . . 1 Parts Field Recycled . | . . . . . . Retrieved Matter . | . . . . . . Parts Self-Destructed . | . . . . . . Prevented . | . . . . . . Kills | -11 -10 -10 -10 -9 -8 ------- Run | Yrd Mat Min Exi Min Mat Combat Hostiles Destroyed 17 | . 12 . . . 5 Melee 1 | . 1 . . . . Guns 11 | . 11 . . . . Cannons 1 | . . . . . 1 AOE 2 | . . . . . 2 Classes Destroyed 10 | . 8 . . . 2 Worker 2 | . 1 . . . 1 Builder 2 | . 1 . . . 1 Tunneler 2 | . 2 . . . . Hauler 2 | . 1 . . . 1 Recycler 1 | . 1 . . . . Watcher 2 | . 2 . . . . Swarmer 5 | . 5 . . . . Grunt 10 | . 7 . . . 3 Brawler 1 | . . . . . 1 Hunter 1 | . . . . . 1 Best Kill Streak 7 | . 3 . . . 7 Combat Bots Only 4 | . 3 . . . 4 Max Kills in Single Turn 2 | . 1 . . . 2 Gunslinging . | . . . . . . Exploded 1 | . . . . . 1 Melee 1 | . 1 . . . . Uniques/NPCs Destroyed . | . . . . . . Combat | -11 -10 -10 -10 -9 -8 -------- Run | Yrd Mat Min Exi Min Mat Hostile Shots Fired 113 | . 74 . . . 39 Missed 31 | . 21 . . . 10 Damage Taken 1361 | . 606 17 . . 738 Core 395 | . 108 . . . 287 Absorbed by Shields . | . . . . . . Core Remaining (%) 78 | 100 . . . 56 . Volleys Fired 86 | . 80 . . . 6 Largest 2 | . 2 . . . 1 Hottest 250 | . 65 . . . 250 Shots Fired 135 | . 129 . . . 6 Gun 129 | . 129 . . . . Cannon 6 | . . . . . 6 Launcher . | . . . . . . Special . | . . . . . . Kinetic 108 | . 108 . . . . Thermal 27 | . 21 . . . 6 Explosive . | . . . . . . Electromagnetic . | . . . . . . Robot Hit Streak 10 | . 10 . . . 7 Robot Miss Streak 6 | . 6 . . . 3 Penetration Max . | . . . . . . Secondary Targets 1 | . 1 . . . . Max Gunslinging Chain 1 | . 1 . . . . Shots Hit Robots 88 | . 82 . . . 6 Core Hits 52 | . 40 . . . 12 Critical Kills . | . . . . . . Critical Parts Destroyed . | . . . . . . Critical Strikes . | . . . . . . Melee Attacks . | . . . . . . Impact . | . . . . . . Slashing . | . . . . . . Piercing . | . . . . . . Sneak Attacks . | . . . . . . Combat Hostiles . | . . . . . . Follow-up Attacks . | . . . . . . Damage Inflicted 1435 | . 807 35 . . 593 Guns 802 | . 802 . . . . Cannons 143 | . . . . . 143 Explosions 450 | . . . . . 450 Melee . | . . . . . . Ramming 40 | . 5 35 . . . Kinetic 561 | . 561 . . . . Thermal 834 | . 241 . . . 593 Explosive . | . . . . . . Electromagnetic . | . . . . . . Impact . | . . . . . . Slashing . | . . . . . . Piercing . | . . . . . . Highest Corruption . | . . . . . . Average Corruption . | . . . . . . Corruption Purged . | . . . . . . Corruption Blocked . | . . . . . . Overload Shots . | . . . . . . Overflow Damage 3 | . . . . . 3 Projectiles 3 | . . . . . 3 Explosions . | . . . . . . Melee . | . . . . . . Knockbacks . | . . . . . . Impact . | . . . . . . Kinetic . | . . . . . . Secondary . | . . . . . . Self-Inflicted Damage 182 | . 2 17 . . 163 Shots 5 | . . . . . 5 Rammed 4 | . 2 2 . . . Targets Rammed 4 | . 2 2 . . . Kicked . | . . . . . . Crushed . | . . . . . . Highest Temperature 739 | . 168 . . . 739 Average Temperature 148 | . 40 . . . 324 Received Heat Transfer 489 | . 300 . . . 189 Effects 20 | . . . . . 20 Shutdowns 3 | . . . . . 3 Energy Bleed 2 | . . . . . 2 Interference 2 | . . . . . 2 Matter Decay 1 | . . . . . 1 Damage (minor) 2 | . . . . . 2 Damage (major) 8 | . . . . . 8 Damage (core) 2 | . . . . . 2 Siege Activations . | . . . . . . Robots Corrupted . | . . . . . . Combat Hostiles . | . . . . . . Parts Fried . | . . . . . . Impact Corruptions . | . . . . . . Robots Melted 3 | . . . . . 3 Combat Hostiles 2 | . . . . . 2 Parts Melted 16 | . 1 . . . 15 Heat Transferred 3835 | . 555 . . . 3280 Parts Sabotaged . | . . . . . . Parts Stolen . | . . . . . . Parts Stripped . | . . . . . . Power Chain Reactions . | . . . . . . Alert | -11 -10 -10 -10 -9 -8 ------- Run | Yrd Mat Min Exi Min Mat Peak Influence 295 | . 189 6 . . 295 Initial 6 | . . 6 . . . Average 34 | . 37 6 . . 97 Maximum Alert Level 1 | . . . . . 1 Low Security (%) 97 | 100 100 100 . 100 72 Level 1 2 | . . . . . 27 Level 2 . | . . . . . . Level 3 . | . . . . . . Level 4 . | . . . . . . Level 5 . | . . . . . . High Security . | . . . . . . Max Security . | . . . . . . Squads Dispatched 3 | . 2 . . . 1 Investigation . | . . . . . . Extermination . | . . . . . . Reinforcement 2 | . 2 . . . . Assault . | . . . . . . Garrison 1 | . . . . . 1 Intercept . | . . . . . . Searches Triggered . | . . . . . . Construction Impeded . | . . . . . . Haulers Reinforced . | . . . . . . Active Scanning Responses . | . . . . . . Cargo Convoy Interrupts . | . . . . . . Stealth | -11 -10 -10 -10 -9 -8 --------- Run | Yrd Mat Min Exi Min Mat Distress Signals 2 | . 1 . . . 1 Communications Jammed . | . . . . . . Distress Signals . | . . . . . . Times Spotted 44 | . 32 . . 3 9 Peak Tracking Total 4 | . 4 . . 3 4 Tactical Retreats 2 | . 1 . . 1 . Traps | -11 -10 -10 -10 -9 -8 ------- Run | Yrd Mat Min Exi Min Mat Traps Triggered 3 | . 3 . . . . Indirectly . | . . . . . . Trap Hack Attempts . | . . . . . . Triggered . | . . . . . . Disarmed . | . . . . . . Reprogrammed . | . . . . . . Reused . | . . . . . . Traps Extracted . | . . . . . . Installed . | . . . . . . Triggered . | . . . . . . Most Traps Carried 3 | . . . . 3 3 Machines | -11 -10 -10 -10 -9 -8 ---------- Run | Yrd Mat Min Exi Min Mat Machines Disabled 4 | . . . . . 4 Max in Single Turn 2 | . . . . . 2 Machines Repaired . | . . . . . . Machines Dismantled . | . . . . . . Machines Sabotaged . | . . . . . . Overloaded Fab Kills . | . . . . . . Hacking | -11 -10 -10 -10 -9 -8 --------- Run | Yrd Mat Min Exi Min Mat Machines Accessed 1 | . . . 1 . . Terminals . | . . . . . . Fabricators . | . . . . . . Repair Stations . | . . . . . . Recycling Units . | . . . . . . Scanalyzers . | . . . . . . Garrison Access . | . . . . . . Total Hacks 1 | . . . 1 . . Successful 1 | . . . 1 . . Failed . | . . . . . . Catastrophic . | . . . . . . Database Lockouts . | . . . . . . Manual 1 | . . . 1 . . Terminals . | . . . . . . Fabricators . | . . . . . . Repair Stations . | . . . . . . Recycling Units . | . . . . . . Scanalyzers . | . . . . . . Garrison Access . | . . . . . . Terminal Hacks 1 | . . . 1 . . Derelict Proto ID Bank 1 | . . . 1 . . Fabricator Hacks . | . . . . . . Repair Station Hacks . | . . . . . . Recycling Unit Hacks . | . . . . . . Scanalyzer . | . . . . . . Garrison Access Hacks . | . . . . . . Unauthorized Hacks . | . . . . . . Terminals . | . . . . . . Fabricators . | . . . . . . Repair Stations . | . . . . . . Recycling Units . | . . . . . . Scanalyzers . | . . . . . . Garrison Access . | . . . . . . Data Cores Recovered . | . . . . . . Used . | . . . . . . Hacking Detections . | . . . . . . Full Trace Events . | . . . . . . Feedback Events . | . . . . . . Feedback Blocked . | . . . . . . Robot Schematics Acquired . | . . . . . . Robots Built . | . . . . . . Authchips . | . . . . . . Time . | . . . . . . Total Robot Build Rating . | . . . . . . Part Schematics Acquired . | . . . . . . Parts Built . | . . . . . . Authchips . | . . . . . . Time . | . . . . . . Total Part Build Rating . | . . . . . . Parts Repaired . | . . . . . . Time . | . . . . . . Parts Recycled . | . . . . . . Recycled Matter . | . . . . . . Retrieved Matter . | . . . . . . Retrieved Components . | . . . . . . Parts Scanalyzed . | . . . . . . Part Schematics Acquired . | . . . . . . Parts Damaged . | . . . . . . Bothacking | -11 -10 -10 -10 -9 -8 ------------ Run | Yrd Mat Min Exi Min Mat Used RIF Installer . | . . . . . . Robots Hacked . | . . . . . . Non-combat . | . . . . . . Combat . | . . . . . . Robot Hacks Applied . | . . . . . . Relay Couplers Released . | . . . . . . Fabnet Peak Effective % . | . . . . . . Robots Rewired . | . . . . . . Allies Hacked . | . . . . . . Hacks Repelled . | . . . . . . Allies | -11 -10 -10 -10 -9 -8 -------- Run | Yrd Mat Min Exi Min Mat Total Allies 2 | . . 2 . . . Largest Group 2 | . . 2 2 . . Highest-Rated Group 42 | . . 42 42 . . Highest-Rated Ally 31 | . . 31 31 . . Total Orders . | . . . . . . Ally Attacks . | . . . . . . Total Damage . | . . . . . . Kills . | . . . . . . Allies Corrupted . | . . . . . . Allies Melted . | . . . . . . Intel | -11 -10 -10 -10 -9 -8 ------- Run | Yrd Mat Min Exi Min Mat Robot Analysis Total . | . . . . . . Derelict Logs Recovered 2 | . . . . 2 . Drone Launches . | . . . . . . Drone Recoveries . | . . . . . . Exploration | -11 -10 -10 -10 -9 -8 ------------- Run | Yrd Mat Min Exi Min Mat Turns Passed 3634 | 64 2332 365 336 293 244 Spaces Moved 1308 | 42 562 216 240 170 78 Core 138 | 21 117 . . . . Treads 322 | 21 301 . . . . Legs . | . . . . . . Wheels 848 | . 144 216 240 170 78 Hover . | . . . . . . Flight . | . . . . . . Fastest Speed 50 | 50 100 140 140 140 140 Average Speed 243 | 132 373 140 140 140 194 Slowest Speed 1500 | 200 1500 140 140 140 230 Overloaded Moves . | . . . . . . Propulsion Burnouts . | . . . . . . Robots Hopped . | . . . . . . Cave-ins Triggered . | . . . . . . Exploration Rate (%) 39 | 4 78 50 61 34 10 Regions Visited 5 Branch Regions 3 Pre-discovered Areas . | . . . . . . Known Exits Taken 1 | . 1 . . . . Unknown Exits Taken 4 | 1 . 1 1 1 . Scrap Searched . | . . . . . . Spaces Dug . | . . . . . . Terrain Destroyed 80 | . . . . . 80 Melee . | . . . . . . Projectile 1 | . . . . . 1 AOE 79 | . . . . . 79 Terrain Rammed . | . . . . . . Walls Destroyed . | . . . . . . Machines Disabled . | . . . . . . Actions | -11 -10 -10 -10 -9 -8 --------- Run | Yrd Mat Min Exi Min Mat Total 1635 | 48 680 278 240 225 164 Wait 209 | . 22 59 . 53 75 Move 1303 | 41 561 215 239 169 78 Hop . | . . . . . . Pick Up 6 | 1 1 . 1 3 . Fast Attach 20 | 6 12 1 . . 1 Attach 3 | . 1 . . . 2 Detach 3 | . 1 1 . . 1 Swap . | . . . . . . Drop 1 | . . . . . 1 Fire 86 | . 80 . . . 6 Melee . | . . . . . . Ram 3 | . 1 2 . . . Kick . | . . . . . . Crush 1 | . 1 . . . . Escape Stasis . | . . . . . . Rewire . | . . . . . . Trap . | . . . . . . Miscellaneous . | . . . . . . Route ------- -11/Scrapyard -10/Materials (discovered 5 exits: [*Mat x2] / *Min x2 / [*Sub]) -10/Mines -10/Exiles (discovered 2 exits: [*Min x2]) -9/Mines -8/Materials History --------- Turn | Location | Event 23 | -11/Scrapyard | Discovered new exit (range 15) 65 | -11/Scrapyard | Entered Materials 149 | -10/Materials | Discovered new exit (range 16) 318 | -10/Materials | Build established: Mutant 328 | -10/Materials | Discovered new exit (range 11) 374 | -10/Materials | Identified exit to Mines 642 | -10/Materials | Discovered new exit (range 11) 743 | -10/Materials | Discovered new exit (range 3) 747 | -10/Materials | Lost 4 parts (1p2n1w) 1256 | -10/Materials | Discovered new exit (range 9) 2397 | -10/Materials | Entered Mines 2459 | -10/Mines | Found a damaged Exp. Sensor Array with a note attached 2476 | -10/Mines | Found Prototype Device 2476 | -10/Mines | Identified Exp. Sensor Array 2497 | -10/Mines | Build established: Scavenger-Mutant 2693 | -10/Mines | Deemed a non-threat by the Exiles lab entrance 2693 | -10/Mines | Discovered new exit (range 5) 2762 | -10/Mines | Entered Exiles 2762 | -10/Exiles | Accompanied by 2 allies 2783 | -10/Exiles | Discovered new exit (range 15) 2792 | -10/Exiles | Led the pair of lost Derelicts to a safe place 2800 | -10/Exiles | Met 8R-AWN 2820 | -10/Exiles | Met EX-HEX 2865 | -10/Exiles | Met EX-BIN 2880 | -10/Exiles | Aligned with FarCom system 2881 | -10/Exiles | Given EX-Vault access code 2918 | -10/Exiles | Opened EX-Vault 2958 | -10/Exiles | Found Firepult 2989 | -10/Exiles | Warned to stay clear of 0b10 Research branches 3036 | -10/Exiles | Met EX-DEC 3085 | -10/Exiles | Discovered new exit (range 10) 3098 | -10/Exiles | Left Exiles lab with Firepult 3098 | -10/Exiles | Entered Mines 3111 | -9/Mines | Met a Derelict bent on vengeance 3125 | -9/Mines | Learned Materials trap positions 3185 | -9/Mines | Assembled infested the area 3190 | -9/Mines | Assisted by a Guerilla fighting off Assembled 3224 | -9/Mines | Found a hidden stash of uninstalled traps 3270 | -9/Mines | Learned Materials emergency access door positions 3319 | -9/Mines | Discovered new exit (range 7) 3391 | -9/Mines | Entered Materials 3391 | -8/Materials | Evolved 4 slots: Propulsion x1, Utility x3 3392 | -8/Materials | Loaded intel: 18 trap records 3563 | -8/Materials | Garrison activated, responded to threat 3635 | -8/Materials | Self-destructed Last Messages --------------- U-05 Engineer lays Concrete. K-01 Serf collects debris. U-05 Engineer lays Concrete. Wheel destroyed. U-05 Engineer lays Concrete. K-01 Serf collects debris. U-05 Engineer lays Concrete. K-01 Serf collects debris. U-05 Engineer lays Concrete. K-01 Serf collects debris. U-05 Engineer builds a Wall. U-05 Engineer lays Concrete. K-01 Serf collects debris. U-05 Engineer lays Concrete. K-01 Serf collects debris. Huge Storage Unit destroyed. U-05 Engineer builds a Wall. U-05 Engineer lays Concrete. K-01 Serf collects debris. U-05 Engineer builds a Wall. Map ----- +----------------------------------------------------+ | ?????????????????????????????????????????????????? | | ?????????????????????????????????????????????????? | | ?????????????????????????????????????????????????? | | ?????????????????????????????????????????????????? | | ?????????????????????????????????????????????????? | | ?????????????????????????????????????????????????? | | ?????????????????????????????????????????????????? | | ?????????????????????????????????????????????????? | | ?????????????????????????????????????????????????? | | ?????????????????????????????????????????????????? | | ????????????????????????? k ?????????????????????? | | ????????????????????????? ????????????????????? | | ????????????????????????? ????????????????????? | | ??????????????????######? ????????????????????? | | ??????????????????# ## ????????????????????? | | ??????????????????# #" ##???????????????????? | | ??????????????????# ## #######?????????????? | | ??????????????????# # rw #?????????????? | | ??????????? ""????# # #?????????????? | | ???????????? ??# ?# # #?????????????? | | ???????????? ?# ?#u + #######???????? | | ????????????""" g # ?# ! ????????? | | ????????????""" # ?# + "T" ??????? | | ????????"" """ ###+### # # ! #?????? | | ?????? % g # ! ????????? | | ?????? @ # ######??????? | | ?????????? """ # ## #?????? | | ????????????""" % k % ; """???????? | | ????????????""" ### ; # # """???????? | | ?????????? ?#/ # # ! ##????????????? | | ?????????? # #u # # ###????????????? | | ?????????" """ # #######??????????????? | | ?????????" ?""" ; #????????????????????? | | ?????????????""w ; #????????????????????? | | ???????????? ! #????????????????????? | | ???????????? ; #????????????????????? | | ??????????? #????????????????????? | | ??????????? #????????????????????? | | ???????????###### ! #????????????????????? | | ????????????????#" ; #############????????? | | ????????????????#" ; #??? | | ????????????????## " #??? | | ?????????????????#""""""" #############+##?????? | | ??????????????????### # # #????????????????????? | | ?????????????????????#### #????????????????????? | | ????????????????????????#####????????????????????? | | ?????????????????????????????????????????????????? | | ?????????????????????????????????????????????????? | | ?????????????????????????????????????????????????? | | ?????????????????????????????????????????????????? | +----------------------------------------------------+ Best States ------------- Heat Dissipation 31 Energy Generation 10 Energy Capacity 250 Matter Stores 300 Matter Capacity 300 Sight Range 16 Robot Scan Range 20 Terrain Scan Density 10 Evasion (%) 50 Recoil Reduction 2 Item Schematics ----------------- None Robot Schematics ------------------ None Fabricated ------------ Nothing Alien Tech Used ----------------- None Achievements -------------- None Challenges ------------ None Game ------ Seed SwarmSapperWeb Manual? 0 Play Time 00:16:42 Cumulative 17.3 hours Start 2024.08.26 @ 08:16:15 End 2024.08.26 @ 08:31:49 Sessions 1 Manual Loads 0 Difficulty Rogue Special Mode None Game No. 19 Rogue 7 Adventurer 12 Explorer 0 Win Type - Total 0 Types 0/0/0/0/0/0/0/0/0 Lore% 6 Gallery% 16 Achievement% 15 Wizard Run 0 Options --------- Layout 0 ASCII 0 Keyboard 1 Movement Numpad Keybinds 0 Fullscreen 2 Font 24/Smallcaps Map View 113x50 Zoom Use 0% Tactical HUD 0 Map Filters NONE Filters NONE Steam 1 RUN: 3e6a0486-938d-4d5d-b945-23e6e2ca571b